bitfinex/quotes_BTCUSD_20250601
["timestamp","ask_amount","ask_price","bid_price","bid_amount"]
[1748768664915,7.17972157,104410.0,104400.0,0.03428474]
[1748768665115,7.17872157,104410.0,104400.0,0.03428474]
[1748768665318,7.24881671,104410.0,104400.0,0.03428474]
[1748768665652,7.18272157,104410.0,104400.0,0.03428474]
[1748768666183,7.24881297,104410.0,104400.0,0.01182477]
[1748768666393,7.24881297,104410.0,104400.0,0.00894237]
[1748768666604,7.24881297,104410.0,104390.0,0.0151]
[1748768666605,5.65569009,104400.0,104390.0,0.0151]
[1748768666819,5.5911685,104390.0,104380.0,4e-05]
[1748768667065,5.7773428,104390.0,104380.0,4e-05]
[1748768667278,6.1601728,104390.0,104380.0,4e-05]
[1748768668117,6.19103783,104390.0,104380.0,4e-05]
[1748768668252,6.2980899,104390.0,104380.0,4e-05]
[1748768668817,6.3480899,104390.0,104380.0,4e-05]
[1748768669443,6.3490899,104390.0,104380.0,4e-05]
[1748768670626,6.3490899,104390.0,104380.0,0.01634]
[1748768670835,6.6420499,104390.0,104380.0,0.01634]
[1748768671187,6.6420499,104390.0,104380.0,0.03144]
[1748768671816,6.2587699,104390.0,104380.0,0.03144]
[1748768672042,6.6420499,104390.0,104380.0,0.03144]
[1748768675079,6.7428499,104390.0,104380.0,0.03144]
[1748768677898,6.7428899,104390.0,104380.0,0.03144]
[1748768679414,6.5920899,104390.0,104380.0,0.03144]
[1748768679620,6.6420899,104390.0,104380.0,0.03144]
[1748768680915,6.6420899,104390.0,104380.0,0.01514]
[1748768681124,6.5920899,104390.0,104380.0,0.01514]
[1748768681324,6.6420899,104390.0,104380.0,0.01514]
[1748768681544,6.6420899,104390.0,104380.0,4e-05]
[1748768681769,6.64704635,104390.0,104380.0,4e-05]
[1748768685678,7.06100635,104390.0,104380.0,4e-05]
[1748768686802,7.06100635,104390.0,104380.0,0.01554]
[1748768687190,7.06100635,104390.0,104380.0,0.03154]
[1748768688560,7.01100635,104390.0,104380.0,0.03154]
[1748768688756,7.06100635,104390.0,104380.0,0.03154]
[1748768689619,7.16180635,104390.0,104380.0,0.03154]
[1748768690814,7.11180635,104390.0,104380.0,0.03154]
[1748768691029,7.16180635,104390.0,104380.0,0.03154]
[1748768691757,7.11180635,104390.0,104380.0,0.03154]
[1748768691957,7.16180635,104390.0,104380.0,0.03154]
[1748768695065,7.16136635,104390.0,104380.0,0.03154]
[1748768697038,7.11136635,104390.0,104380.0,0.03154]
[1748768697244,6.77848635,104390.0,104380.0,0.03154]
[1748768697448,7.16080635,104390.0,104380.0,0.03154]
[1748768697853,7.11080635,104390.0,104380.0,0.03154]
[1748768698080,7.16080635,104390.0,104380.0,0.01604]
[1748768698461,7.16080635,104390.0,104380.0,4e-05]
[1748768699554,7.11080635,104390.0,104380.0,4e-05]
[1748768699769,7.16080635,104390.0,104380.0,4e-05]
[1748768701747,6.77848635,104390.0,104380.0,4e-05]
[1748768701960,7.16088635,104390.0,104380.0,4e-05]
[1748768703537,7.22708282,104390.0,104380.0,4e-05]
[1748768704575,7.12628282,104390.0,104380.0,4e-05]
[1748768705650,7.12635823,104390.0,104380.0,4e-05]
[1748768709725,7.09249097,104390.0,104380.0,4e-05]
[1748768709929,7.09261097,104390.0,104380.0,4e-05]
[1748768710758,7.09266271,104390.0,104380.0,4e-05]
[1748768712129,7.09262271,104390.0,104380.0,4e-05]
[1748768712873,7.04264062,104390.0,104380.0,4e-05]
[1748768713125,7.09264062,104390.0,104380.0,4e-05]
[1748768716012,7.09265529,104390.0,104380.0,4e-05]
[1748768717271,7.04265529,104390.0,104380.0,4e-05]
[1748768717606,7.09265529,104390.0,104380.0,4e-05]
[1748768718381,6.79997529,104390.0,104380.0,4e-05]
[1748768718575,7.09237529,104390.0,104380.0,4e-05]
[1748768719666,7.19317529,104390.0,104380.0,4e-05]
[1748768720042,7.09237529,104390.0,104380.0,4e-05]
[1748768721343,7.10587529,104390.0,104380.0,4e-05]
[1748768721744,7.05587529,104390.0,104380.0,4e-05]
[1748768721947,7.10587529,104390.0,104380.0,4e-05]
[1748768723023,6.81347529,104390.0,104380.0,4e-05]
[1748768723283,7.10583529,104390.0,104380.0,4e-05]
[1748768723489,7.05583529,104390.0,104380.0,4e-05]
[1748768723679,7.10583529,104390.0,104380.0,4e-05]
[1748768728716,6.81347529,104390.0,104380.0,4e-05]
[1748768729081,7.10607529,104390.0,104380.0,4e-05]
[1748768731831,7.10607372,104390.0,104380.0,4e-05]
[1748768736291,7.05607372,104390.0,104380.0,4e-05]
[1748768736501,7.10607372,104390.0,104380.0,4e-05]
[1748768736726,7.09257372,104390.0,104380.0,4e-05]
[1748768737231,7.09245372,104390.0,104380.0,4e-05]
[1748768737728,7.09145372,104390.0,104380.0,4e-05]
[1748768737949,7.09445372,104390.0,104380.0,4e-05]
[1748768738188,7.09245372,104390.0,104380.0,4e-05]
[1748768738495,7.09445372,104390.0,104380.0,4e-05]
[1748768739838,7.19525372,104390.0,104380.0,4e-05]
[1748768742465,7.19525381,104390.0,104380.0,4e-05]
[1748768743839,7.20525381,104390.0,104380.0,4e-05]
[1748768746518,7.20525381,104390.0,104380.0,0.01524]
[1748768746737,6.91277381,104390.0,104380.0,0.01524]
[1748768746956,7.20513381,104390.0,104380.0,0.01524]
[1748768750308,7.20513381,104390.0,104380.0,4e-05]
[1748768755393,7.20513408,104390.0,104380.0,4e-05]
[1748768757505,6.91277408,104390.0,104380.0,4e-05]
[1748768757706,7.20513408,104390.0,104380.0,4e-05]
[1748768757913,6.76297408,104390.0,104380.0,4e-05]
[1748768758118,6.81297408,104390.0,104380.0,4e-05]
[1748768758328,7.19481408,104390.0,104380.0,4e-05]
[1748768759124,7.14481408,104390.0,104380.0,4e-05]
[1748768759504,7.19481408,104390.0,104380.0,4e-05]
[1748768760149,6.81297408,104390.0,104380.0,4e-05]
[1748768760370,7.19481408,104390.0,104380.0,4e-05]
[1748768764603,1.90150286,104390.0,104380.0,4e-05]
[1748768764846,1.56966286,104390.0,104380.0,4e-05]
[1748768765077,1.98545348,104390.0,104380.0,4e-05]
[1748768765320,1.93545348,104390.0,104380.0,4e-05]
[1748768766022,1.53907263,104390.0,104380.0,4e-05]
[1748768766266,1.25978063,104390.0,104380.0,0.00901075]
[1748768766476,1.48074583,104390.0,104380.0,0.02694754]
[1748768766691,1.48074583,104390.0,104380.0,0.02694522]
[1748768766692,1.91325705,104390.0,104380.0,0.02694522]
[1748768766924,0.22532873,104370.0,104360.0,0.00421643]
[1748768767137,0.79235825,104370.0,104360.0,0.02216341]
[1748768767347,1.17518825,104370.0,104360.0,0.03113735]
[1748768767560,1.17518825,104370.0,104360.0,0.03113789]
[1748768767777,1.17518825,104370.0,104360.0,0.02692146]
[1748768767984,1.17518825,104370.0,104360.0,0.02692251]
[1748768768399,1.17518825,104370.0,104360.0,0.02692257]
[1748768768609,1.17518825,104370.0,104360.0,0.02692263]
[1748768768816,0.55082829,104350.0,104340.0,0.13333334]
[1748768769002,0.64668259,104350.0,104340.0,0.16025549]
[1748768769456,0.64668259,104350.0,104340.0,0.14230739]
[1748768769874,0.55082829,104350.0,104340.0,0.16264852]
[1748768770111,0.55082829,104350.0,104340.0,0.16713594]
[1748768770299,0.55082829,104350.0,104340.0,0.16713567]
[1748768770706,0.55082829,104350.0,104340.0,0.17113552]
[1748768770912,0.55082829,104350.0,104340.0,0.17113557]
[1748768771275,0.55082829,104350.0,104340.0,0.17113542]
[1748768771894,0.64051441,104350.0,104340.0,0.16873951]
[1748768772340,0.64051441,104350.0,104340.0,0.16874]
[1748768772472,0.55082829,104350.0,104340.0,0.16874]
[1748768773258,0.55082829,104350.0,104340.0,0.16874046]
[1748768773794,0.55082829,104350.0,104340.0,0.14182108]
[1748768774000,0.55082829,104350.0,104340.0,0.16874131]
[1748768774204,0.64333951,104350.0,104340.0,0.15079449]
[1748768774411,0.73919381,104350.0,104340.0,0.1687414]
[1748768775266,0.64668259,104350.0,104340.0,0.16874185]
[1748768775476,0.64668259,104350.0,104340.0,0.16874203]
[1748768775689,0.64668259,104350.0,104340.0,0.1597683]
[1748768776099,0.64668259,104350.0,104340.0,0.16874191]
[1748768776695,0.64668259,104350.0,104340.0,0.16874209]
[1748768776909,0.64668259,104350.0,104340.0,0.17891842]
[1748768777104,0.64668259,104350.0,104340.0,0.18789193]
[1748768777432,0.64668259,104350.0,104340.0,0.18789169]
[1748768777637,0.64668259,104350.0,104340.0,0.18789155]
[1748768777835,0.73919381,104350.0,104340.0,0.18789155]
[1748768779305,0.73919381,104350.0,104340.0,0.18789174]
[1748768779514,0.73919381,104350.0,104340.0,0.18789136]
[1748768780133,0.73919381,104350.0,104340.0,0.18789145]
[1748768780379,0.73919381,104350.0,104340.0,0.1878913]
[1748768780662,0.73919381,104350.0,104340.0,0.18789197]
[1748768781335,0.73919381,104350.0,104340.0,0.18789422]
[1748768781687,0.73919381,104350.0,104340.0,0.16097108]
[1748768781889,0.73919381,104350.0,104340.0,0.12123075]
[1748768782096,0.73919381,104350.0,104340.0,0.12123083]
[1748768783160,0.73919381,104350.0,104340.0,0.12123119]
[1748768783685,0.73919381,104350.0,104340.0,0.12123103]
[1748768784134,0.73919381,104350.0,104340.0,0.12123102]
[1748768784368,0.73919381,104350.0,104340.0,0.12123116]
[1748768784726,0.73919381,104350.0,104340.0,0.10327999]
[1748768784927,0.73919381,104350.0,104340.0,0.09430441]
[1748768785107,0.73919381,104350.0,104340.0,0.12123115]
[1748768785317,0.73919381,104350.0,104340.0,0.12123112]
[1748768785514,0.73919381,104350.0,104340.0,0.12123103]
[1748768785721,0.73919381,104350.0,104340.0,0.1212316]
[1748768786083,0.73919381,104350.0,104340.0,0.12123171]
[1748768786285,0.73919381,104350.0,104340.0,0.12123195]
[1748768786524,0.64668259,104350.0,104340.0,0.12123195]
[1748768786929,0.64668259,104350.0,104340.0,0.12123142]
[1748768787127,0.64668259,104350.0,104340.0,0.10328008]
[1748768787360,0.64668259,104350.0,104340.0,0.12123124]
[1748768787798,0.66122344,104350.0,104340.0,0.12123124]
[1748768788005,0.75373466,104350.0,104340.0,0.10208124]
[1748768788180,0.75373466,104350.0,104340.0,0.08413002]
[1748768788446,0.75373466,104350.0,104340.0,0.10208341]
[1748768788667,0.75373466,104350.0,104340.0,0.09808475]
[1748768788895,0.75373466,104350.0,104340.0,0.09408527]
[1748768789072,0.75373466,104350.0,104340.0,0.08013136]
[1748768789300,0.75373466,104350.0,104340.0,0.10008152]
[1748768789512,0.75373466,104350.0,104340.0,0.06915441]
[1748768789719,0.75373466,104350.0,104340.0,0.09707917]
[1748768790288,0.75373466,104350.0,104340.0,0.09707795]
[1748768790493,0.75373466,104350.0,104340.0,0.09707549]
[1748768791319,1.13656466,104350.0,104340.0,0.09707549]
[1748768792127,1.14604849,104350.0,104340.0,0.09706903]
[1748768792542,1.14604849,104350.0,104340.0,0.09706909]
[1748768793981,1.14604849,104350.0,104340.0,0.09706615]
[1748768794202,1.14604849,104350.0,104340.0,0.09706027]
[1748768795401,1.14604849,104350.0,104340.0,0.09705978]
[1748768795608,1.14604849,104350.0,104340.0,0.07015441]
[1748768795808,1.14604849,104350.0,104340.0,0.09705854]
[1748768796012,1.14604849,104350.0,104340.0,0.07912245]
[1748768796211,1.14604849,104350.0,104340.0,0.09705867]
[1748768796414,1.14604849,104350.0,104340.0,0.09705869]
[1748768797030,1.14604849,104350.0,104340.0,0.097057]
[1748768797301,1.14604849,104350.0,104340.0,0.0970564]
[1748768797927,1.14604849,104350.0,104340.0,0.07015441]
[1748768798123,1.17483149,104350.0,104340.0,0.07015441]
[1748768798659,1.17483149,104350.0,104340.0,0.06915441]
[1748768799147,1.17483149,104350.0,104340.0,0.06715441]
[1748768801045,6.22483149,104350.0,104340.0,0.06715441]
[1748768805959,6.22483149,104350.0,104340.0,0.08305441]
[1748768806159,6.22483149,104350.0,104340.0,0.09945441]
[1748768809031,6.63891149,104350.0,104340.0,0.09945441]
[1748768810883,6.63891149,104350.0,104340.0,0.08355441]
[1748768811407,6.63891149,104350.0,104340.0,0.06715441]
[1748768817077,6.93135149,104350.0,104340.0,0.06715441]
[1748768817522,7.02095149,104350.0,104340.0,0.06715441]
[1748768822801,7.02095149,104350.0,104340.0,0.07612907]
[1748768823668,7.02095149,104350.0,104340.0,0.07612924]
[1748768823884,7.02095149,104350.0,104340.0,0.07613034]
[1748768825158,7.02095149,104350.0,104340.0,0.07613195]
[1748768825815,7.02095149,104350.0,104340.0,0.07613416]
[1748768826478,7.02095149,104350.0,104340.0,0.07613427]
[1748768826676,7.02099149,104350.0,104340.0,0.07613427]
[1748768826885,7.02099149,104350.0,104340.0,0.09410681]
[1748768827548,7.02099149,104350.0,104340.0,0.08512274]
[1748768827761,7.02099149,104350.0,104340.0,0.0941069]
[1748768827984,7.02099149,104350.0,104340.0,0.06715441]
[1748768828210,7.02594779,104350.0,104340.0,0.06715441]
[1748768831955,7.09219556,104350.0,104340.0,0.06715441]
[1748768832595,7.09219556,104350.0,104340.0,0.00048774]
[1748768834328,7.09219556,104350.0,104340.0,0.01708774]
[1748768834754,7.09219556,104350.0,104340.0,0.03218774]
[1748768834958,7.09419556,104350.0,104340.0,0.03218774]
[1748768836056,7.09619556,104350.0,104340.0,0.03218774]
[1748768836260,0.56542977,104320.0,104310.0,0.07635409]
[1748768836442,1.11899859,104320.0,104310.0,0.10342791]
[1748768836654,1.50182859,104320.0,104310.0,0.1034281]
[1748768837085,1.50182859,104320.0,104310.0,0.1034282]
[1748768837655,1.50182859,104320.0,104310.0,0.1064282]
[1748768838128,1.50182859,104320.0,104310.0,0.11042562]
[1748768838376,1.50182859,104320.0,104310.0,0.11042026]
[1748768838837,1.99712859,104320.0,104310.0,0.03406617]
[1748768839059,1.99712859,104320.0,104310.0,0.03406619]
[1748768839256,1.99712859,104320.0,104310.0,0.03406469]
[1748768839723,1.99712859,104320.0,104310.0,0.01611856]
[1748768839941,1.99712859,104320.0,104310.0,0.01611855]
[1748768840355,1.99712859,104320.0,104310.0,0.01311855]
[1748768840558,1.99712859,104320.0,104310.0,0.00911524]
[1748768840758,1.99712859,104320.0,104310.0,0.01011524]
[1748768841126,1.99712859,104320.0,104310.0,0.00114612]
[1748768841336,1.99712859,104320.0,104310.0,0.00414612]
[1748768841950,1.99712859,104320.0,104310.0,0.00114612]
[1748768842151,1.99712859,104320.0,104310.0,0.01111241]
[1748768843159,1.99712859,104320.0,104310.0,0.00214612]
[1748768844368,1.50182859,104320.0,104310.0,0.00214612]
[1748768846707,1.91598859,104320.0,104310.0,0.00214612]
[1748768849184,1.94478059,104320.0,104310.0,0.00214612]
[1748768855296,1.91598859,104320.0,104310.0,0.00214612]
[1748768856240,1.91598859,104320.0,104310.0,0.01110927]
[1748768856765,1.91598859,104320.0,104310.0,0.01110942]
[1748768856962,1.91598859,104320.0,104310.0,0.00214612]
[1748768857178,1.91598859,104320.0,104310.0,0.01110942]
[1748768857805,1.91598859,104320.0,104310.0,0.01111135]
[1748768858536,1.91598859,104320.0,104310.0,0.00214612]
[1748768858743,1.91598859,104320.0,104310.0,0.01111221]
[1748768859614,1.91598859,104320.0,104310.0,0.01111315]
[1748768860266,1.91598859,104320.0,104310.0,0.01111336]
[1748768861108,1.91598859,104320.0,104310.0,0.0111143]
[1748768861247,1.91598859,104320.0,104310.0,0.01111568]
[1748768861443,1.91598859,104320.0,104310.0,0.00214612]
[1748768861674,1.91598859,104320.0,104310.0,0.01111568]
[1748768862283,1.91598859,104320.0,104310.0,0.01111683]
[1748768863256,1.91598859,104320.0,104310.0,0.01111817]
[1748768863863,1.91598859,104320.0,104310.0,0.00214612]
[1748768864212,1.91598859,104320.0,104310.0,0.01111841]
[1748768864622,1.91598859,104320.0,104310.0,0.01112036]
[1748768865244,1.91598859,104320.0,104310.0,0.01112288]
[1748768866637,1.91598859,104320.0,104310.0,0.01112566]
[1748768867288,1.91598859,104320.0,104310.0,0.02909042]
[1748768867486,1.91598859,104320.0,104310.0,0.02909054]
[1748768867705,1.91598859,104320.0,104310.0,0.01112768]
[1748768868007,1.91598859,104320.0,104310.0,0.02010925]
[1748768868391,1.91598859,104320.0,104310.0,0.02909864]
[1748768868920,1.91598859,104320.0,104310.0,0.02909862]
[1748768869120,1.91598859,104320.0,104310.0,0.02909861]
[1748768869331,1.91598859,104320.0,104310.0,0.02910983]
[1748768869547,1.91598859,104320.0,104310.0,0.02910982]
[1748768870293,1.91598859,104320.0,104310.0,0.0201219]
[1748768870472,1.91598859,104320.0,104310.0,0.01113401]
[1748768870670,1.91598859,104320.0,104310.0,0.02910979]
[1748768870850,1.91598859,104320.0,104310.0,0.01113401]
[1748768871080,1.91598859,104320.0,104310.0,0.02910979]
[1748768871476,1.91602859,104320.0,104310.0,0.02910979]
[1748768871936,1.91602859,104320.0,104310.0,0.02910978]
[1748768872206,1.91602859,104320.0,104310.0,0.02910981]
[1748768872782,1.91602859,104320.0,104310.0,0.02910982]
[1748768873321,1.91602859,104320.0,104310.0,0.02910985]
[1748768874323,1.91602859,104320.0,104310.0,0.02012198]
[1748768874522,1.91602859,104320.0,104310.0,0.02910991]
[1748768875500,1.91602859,104320.0,104310.0,0.02012203]
[1748768875695,1.91602859,104320.0,104310.0,0.02911]
[1748768875955,1.91602859,104320.0,104310.0,0.00214612]
[1748768876111,1.91602859,104320.0,104310.0,0.02012211]
[1748768876318,1.91602859,104320.0,104310.0,0.02012217]
[1748768876524,1.91602859,104320.0,104310.0,0.02911018]
[1748768876719,1.91602859,104320.0,104310.0,0.01113414]
[1748768876925,1.91602859,104320.0,104310.0,0.00214612]
[1748768877146,1.91602859,104320.0,104310.0,0.02012221]
[1748768877400,1.91602859,104320.0,104310.0,0.00214612]
[1748768878037,1.91602859,104320.0,104310.0,0.02911022]
[1748768878239,1.91602859,104320.0,104310.0,0.00214612]
[1748768878444,1.91602859,104320.0,104310.0,0.02911027]
[1748768879079,1.91602859,104320.0,104310.0,0.01113417]
[1748768879281,1.91602859,104320.0,104310.0,0.02911031]
[1748768879668,1.91602859,104320.0,104310.0,0.02911028]
[1748768880386,1.91602859,104320.0,104310.0,0.00214612]
[1748768880588,1.91602859,104320.0,104310.0,0.02911036]
[1748768881664,1.91602859,104320.0,104310.0,0.02012227]
[1748768881868,1.91602859,104320.0,104310.0,0.02911034]
[1748768882074,1.04411407,104320.0,104310.0,0.02911034]
[1748768882290,1.04411407,104320.0,104310.0,0.02910791]
[1748768882291,1.11909322,104320.0,104310.0,0.02910791]
[1748768882643,1.41157322,104320.0,104310.0,0.00214612]
[1748768882816,1.41157322,104320.0,104310.0,0.029106]
[1748768883019,1.41157322,104320.0,104310.0,0.02909882]
[1748768883223,1.42611407,104320.0,104310.0,0.02909882]
[1748768883585,1.42611407,104320.0,104310.0,0.02908416]
[1748768883856,1.42611407,104320.0,104310.0,0.01112543]
[1748768884087,1.42611407,104320.0,104310.0,0.00214612]
[1748768884349,1.51862529,104320.0,104310.0,0.00214612]
[1748768885920,1.51862529,104320.0,104310.0,0.02010474]
[1748768886175,1.51862529,104320.0,104310.0,0.01112553]
[1748768886418,1.51862529,104320.0,104310.0,0.00214612]
[1748768886633,1.51862529,104320.0,104310.0,0.02908385]
[1748768887126,1.51862529,104320.0,104310.0,0.02907851]
[1748768887355,1.51862529,104320.0,104310.0,0.02010062]
[1748768887564,1.51862529,104320.0,104310.0,0.01112337]
[1748768887968,1.51862529,104320.0,104310.0,0.00214612]
[1748768888301,1.51862529,104320.0,104310.0,0.02010017]
[1748768888768,1.51862529,104320.0,104310.0,0.01112314]
[1748768889011,1.51862529,104320.0,104310.0,0.02010017]
[1748768889225,1.51862529,104320.0,104310.0,0.0111229]
[1748768889433,1.51862529,104320.0,104310.0,0.02009967]
[1748768889639,1.51862529,104320.0,104310.0,0.0111229]
[1748768890200,1.51862529,104320.0,104310.0,0.02009942]
[1748768890409,1.51862529,104320.0,104310.0,0.03805246]
[1748768890603,1.51862529,104320.0,104310.0,0.03805248]
[1748768890991,1.51862529,104320.0,104310.0,0.03805247]
[1748768891615,1.51862529,104320.0,104310.0,0.02907281]
[1748768891835,1.51862529,104320.0,104310.0,0.03804776]
[1748768892020,1.51862529,104320.0,104310.0,0.0111229]
[1748768892241,1.42611407,104320.0,104310.0,0.03804779]
[1748768892389,1.42611407,104320.0,104310.0,0.03804493]
[1748768892585,1.42611407,104320.0,104310.0,0.02009692]
[1748768892802,1.42611407,104320.0,104310.0,0.03804496]
[1748768893022,1.51862529,104320.0,104310.0,0.03804496]
[1748768893437,1.51862529,104320.0,104310.0,0.02009599]
[1748768893638,1.51862529,104320.0,104310.0,0.02906909]
[1748768893841,1.51862529,104320.0,104310.0,0.03804219]
[1748768894282,1.51862529,104320.0,104310.0,0.03804142]
[1748768894512,1.51862529,104320.0,104310.0,0.03804143]
[1748768894708,1.51858529,104320.0,104310.0,0.03804143]
[1748768894914,1.51858529,104320.0,104310.0,0.03804109]
[1748768895260,1.51858529,104320.0,104310.0,0.02009545]
[1748768895462,1.51858529,104320.0,104310.0,0.0111229]
[1748768895687,1.51858529,104320.0,104310.0,0.03803939]
[1748768896485,1.51858529,104320.0,104310.0,0.03803919]
[1748768896702,1.51858529,104320.0,104310.0,0.03803879]
[1748768896899,1.51858529,104320.0,104310.0,0.0111229]
[1748768897102,1.51858529,104320.0,104310.0,0.02906684]
[1748768897310,1.51858529,104320.0,104310.0,0.03803832]
[1748768897510,1.42607407,104320.0,104310.0,0.03803764]
[1748768898324,1.42607407,104320.0,104310.0,0.0111229]
[1748768898499,1.42607407,104320.0,104310.0,0.03803702]
[1748768898683,1.42607407,104320.0,104310.0,0.02906565]
[1748768899023,1.42607407,104320.0,104310.0,0.03803702]
[1748768899204,1.51858529,104320.0,104310.0,0.03803702]
[1748768899409,1.51858529,104320.0,104310.0,0.03803692]
[1748768900660,1.51858529,104320.0,104310.0,0.03803735]
[1748768901216,1.51858529,104320.0,104310.0,0.02009448]
[1748768901894,1.51858529,104320.0,104310.0,0.0111229]
[1748768902114,1.51858529,104320.0,104310.0,0.04700922]
[1748768902420,1.51858529,104320.0,104310.0,0.09186807]
[1748768902624,1.51858529,104320.0,104310.0,0.10083984]
[1748768902844,1.51858529,104320.0,104310.0,0.12775515]
[1748768903079,1.51858529,104320.0,104310.0,0.13672692]
[1748768903287,1.51858529,104320.0,104310.0,0.17261562]
[1748768903459,1.51858529,104320.0,104310.0,0.19055981]
[1748768903660,1.51858529,104320.0,104310.0,0.22644819]
[1748768903822,1.51858529,104320.0,104310.0,0.25336447]
[1748768904241,1.51858529,104320.0,104310.0,0.28670866]
[1748768904464,1.51858529,104320.0,104310.0,0.3046539]
[1748768904667,1.51858529,104320.0,104310.0,0.32259914]
[1748768904901,1.51858529,104320.0,104310.0,0.349517]
[1748768905027,1.51858529,104320.0,104310.0,0.365617]
[1748768905607,1.51858529,104320.0,104310.0,0.39253738]
[1748768906115,1.51858529,104320.0,104310.0,0.365617]
[1748768906473,1.51858529,104320.0,104310.0,0.37459091]
[1748768906877,1.51858529,104320.0,104310.0,0.39253873]
[1748768907055,1.51858529,104320.0,104310.0,0.365617]
[1748768907257,1.51858529,104320.0,104310.0,0.37459244]
[1748768907507,1.51858529,104320.0,104310.0,0.365617]
[1748768907885,1.51858529,104320.0,104310.0,0.38356788]
[1748768908085,1.51858529,104320.0,104310.0,0.365617]
[1748768908622,1.51858529,104320.0,104310.0,0.37459244]
[1748768908835,1.51858529,104320.0,104310.0,0.365617]
[1748768909174,1.42607407,104320.0,104310.0,0.38357312]
[1748768909373,1.42607407,104320.0,104310.0,0.37459506]
[1748768909578,1.42607407,104320.0,104310.0,0.365617]
[1748768910014,1.42607407,104320.0,104310.0,0.37459506]
[1748768910345,1.42607407,104320.0,104310.0,0.38357312]
[1748768910552,1.51858529,104320.0,104310.0,0.365617]
[1748768910956,1.51858529,104320.0,104310.0,0.37459506]
[1748768911161,1.51858529,104320.0,104310.0,0.38358692]
[1748768911306,1.51858529,104320.0,104310.0,0.365617]
[1748768911722,1.51858529,104320.0,104310.0,0.38358692]
[1748768911919,1.51858529,104320.0,104310.0,0.365617]
[1748768912336,1.51858529,104320.0,104310.0,0.38358692]
[1748768912585,1.51858529,104320.0,104310.0,0.365617]
[1748768912790,1.51858529,104320.0,104310.0,0.38358692]
[1748768913001,1.51858529,104320.0,104310.0,0.38359094]
[1748768913155,1.51858529,104320.0,104310.0,0.365617]
[1748768913366,1.51858529,104320.0,104310.0,0.38359094]
[1748768913569,1.51858529,104320.0,104310.0,0.37460397]
[1748768913766,1.51858529,104320.0,104310.0,0.365617]
[1748768914282,1.51858529,104320.0,104310.0,0.35850397]
[1748768914498,1.51858529,104320.0,104310.0,0.349517]
[1748768914699,1.51858529,104320.0,104310.0,0.334117]
[1748768914914,1.22614529,104320.0,104310.0,0.334117]
[1748768915117,1.51854529,104320.0,104310.0,0.35209094]
[1748768915411,1.51854529,104320.0,104310.0,0.36107782]
[1748768915610,1.51854529,104320.0,104310.0,0.334117]
[1748768915822,1.51854529,104320.0,104310.0,0.34310397]
[1748768916102,1.51854529,104320.0,104310.0,0.334117]
[1748768916516,1.51854529,104320.0,104310.0,0.34310396]
[1748768916644,1.51854529,104320.0,104310.0,0.334117]
[1748768917064,1.51854529,104320.0,104310.0,0.36107785]
[1748768917314,1.51854529,104320.0,104310.0,0.334117]
[1748768917832,1.51854529,104320.0,104310.0,0.34310397]
[1748768918021,1.51854529,104320.0,104310.0,0.334117]
[1748768919204,1.51854529,104320.0,104310.0,0.35209104]
[1748768919425,1.51854529,104320.0,104310.0,0.36107806]
[1748768919637,1.51854529,104320.0,104310.0,0.34310408]
[1748768920059,1.51854529,104320.0,104310.0,0.350117]
[1748768920319,1.51854529,104320.0,104310.0,0.36809119]
[1748768920726,1.51854529,104320.0,104310.0,0.366117]
[1748768921371,1.51854529,104320.0,104310.0,0.39307828]
[1748768921658,1.51854529,104320.0,104310.0,0.366117]
[1748768921837,1.51854529,104320.0,104310.0,0.39307828]
[1748768922048,1.51854529,104320.0,104310.0,0.3694925]
[1748768922454,1.51854529,104320.0,104310.0,0.38746681]
[1748768922696,1.51854529,104320.0,104310.0,0.37146681]
[1748768922876,1.51854529,104320.0,104310.0,0.3534925]
[1748768923442,1.53354529,104320.0,104310.0,0.35546705]
[1748768923663,1.55014529,104320.0,104310.0,0.3464805]
[1748768923864,1.57893629,104320.0,104310.0,0.3374925]
[1748768924228,1.57893629,104320.0,104310.0,0.35546884]
[1748768924428,1.57893629,104320.0,104310.0,0.36345704]
[1748768924721,1.56333629,104320.0,104310.0,0.36345704]
[1748768925247,1.56333629,104320.0,104310.0,0.36345738]
[1748768925604,1.56333629,104320.0,104310.0,0.3364925]
[1748768925845,1.57833629,104320.0,104310.0,0.3354925]
[1748768926029,1.57933629,104320.0,104310.0,0.3354925]
[1748768927374,6.62933629,104320.0,104310.0,0.3354925]
[1748768927591,6.7006675,104320.0,104310.0,0.3354925]
[1748768928269,6.7006675,104320.0,104310.0,0.3078025]
[1748768928495,6.7006675,104320.0,104310.0,0.2902625]
[1748768929128,6.7006675,104320.0,104310.0,0.286887]
[1748768930027,6.6856675,104320.0,104310.0,0.286887]
[1748768930259,6.6706675,104320.0,104310.0,0.286887]
[1748768930499,6.6706675,104320.0,104310.0,0.240487]
[1748768930715,5.6154702,104300.0,104290.0,0.03123468]
[1748768930922,5.6154702,104300.0,104290.0,0.0313809]
[1748768930923,6.58064861,104300.0,104290.0,0.0313809]
[1748768932007,6.59046199,104300.0,104290.0,0.0313809]
[1748768932217,6.59046199,104300.0,104290.0,0.0343809]
[1748768933047,6.59046199,104300.0,104290.0,0.0333809]
[1748768933257,6.58064861,104300.0,104290.0,0.0333809]
[1748768933472,6.58264861,104300.0,104290.0,0.0333809]
[1748768933678,6.58268861,104300.0,104290.0,0.0313809]
[1748768933884,6.58468861,104300.0,104290.0,0.0313809]
[1748768934348,6.31170963,104300.0,104290.0,0.0313809]
[1748768934554,6.60414963,104300.0,104290.0,0.0313809]
[1748768934946,6.31170963,104300.0,104290.0,0.0313809]
[1748768935380,6.60414963,104300.0,104290.0,0.0313809]
[1748768935613,6.31170963,104300.0,104290.0,0.0313809]
[1748768935817,6.60414963,104300.0,104290.0,0.0313809]
[1748768936214,6.31170963,104300.0,104290.0,0.0313809]
[1748768936840,6.60414963,104300.0,104290.0,0.0313809]
[1748768938186,6.60414963,104300.0,104290.0,0.00014622]
[1748768938896,6.63294863,104300.0,104290.0,0.00014622]
[1748768943763,6.34050863,104300.0,104290.0,0.00014622]
[1748768943965,6.63298863,104300.0,104290.0,0.00014622]
[1748768944171,6.39050863,104300.0,104290.0,0.00014622]
[1748768944376,6.68298863,104300.0,104290.0,0.00014622]
[1748768945405,6.63298863,104300.0,104290.0,0.00014622]
[1748768945618,6.68298863,104300.0,104290.0,0.00014622]
[1748768946231,6.63298863,104300.0,104290.0,0.00014622]
[1748768946442,6.68298863,104300.0,104290.0,0.00014622]
[1748768946640,5.60590225,104290.0,104280.0,0.01]
[1748768946873,6.20858777,104290.0,104280.0,0.01004871]
[1748768947080,6.59141777,104290.0,104280.0,0.01004871]
[1748768947699,6.59637243,104290.0,104280.0,0.01004871]
[1748768948133,6.90737243,104290.0,104280.0,0.01004871]
[1748768948548,6.90837243,104290.0,104280.0,0.01004871]
[1748768950803,0.56553089,104270.0,104260.0,0.02213904]
[1748768951021,0.56553089,104270.0,104260.0,0.02218778]
[1748768951022,6.169119,104270.0,104260.0,0.02218778]
[1748768951224,6.861949,104270.0,104260.0,0.02218778]